fUST/lending_fUST_20241006
["ID","MTS","AMOUNT","RATE_DAILY","PERIOD"]
[339947831,1728187850874,-500.0,0.00013698,2]
[339947832,1728187850883,-500.0,0.00013698,2]
[339947833,1728187850892,-500.0,0.00013698,2]
[339947834,1728187850901,-500.0,0.00013698,2]
[339947835,1728187850911,-500.0,0.00013698,2]
[339947836,1728187850920,-500.0,0.00013698,2]
[339947837,1728187850929,-500.0,0.00013698,2]
[339947838,1728187850939,-500.0,0.00013698,2]
[339947839,1728187850948,-500.0,0.00013698,2]
[339947840,1728187850958,-500.0,0.00013698,2]
[339947841,1728187850970,-505.84377246,0.00013698,2]
[339947842,1728187850981,-500.0,0.00013698,2]
[339947843,1728187850991,-501.59379706,0.00013698,2]
[339947844,1728187851003,-500.0,0.00013698,2]
[339947845,1728187851013,-500.0,0.00013698,2]
[339947846,1728187851023,-759.72,0.00013698,2]
[339947847,1728187851033,-500.0,0.00013698,2]
[339947848,1728187851045,-500.0,0.00013698,2]
[339947849,1728187851055,-500.0,0.00013698,2]
[339947850,1728187851067,-500.0,0.00013698,2]
[339947851,1728187851078,-500.0,0.00013698,2]
[339947852,1728187851087,-501.95855639,0.00013698,2]
[339947853,1728187851098,-500.0,0.00013698,2]
[339947854,1728187851109,-500.0,0.00013698,2]
[339947855,1728187851118,-512.46,0.00013698,2]
[339947856,1728187851128,-500.0,0.00013698,2]
[339947857,1728187851140,-500.0,0.00013698,2]
[339947858,1728187851150,-500.0,0.00013698,2]
[339947859,1728187851161,-508.73074586,0.00013698,2]
[339947860,1728187851172,-500.0,0.00013698,2]
[339947861,1728187851182,-500.0,0.00013698,2]
[339947862,1728187851193,-501.65945604,0.00013698,2]
[339947863,1728187851203,-500.0,0.00013698,2]
[339947864,1728187851214,-500.0,0.00013698,2]
[339947866,1728187851225,-500.0,0.00013698,2]
[339947867,1728187851235,-1016.08977655,0.00013698,2]
[339947868,1728187851245,-500.0,0.00013698,2]
[339947869,1728187851255,-500.0,0.00013698,2]
[339947870,1728187851267,-500.0,0.00013698,2]
[339947872,1728187851278,-811.57,0.00013698,2]
[339947873,1728187851289,-500.41714012,0.00013698,2]
[339947874,1728187851300,-500.76395484,0.00013698,2]
[339947875,1728187851310,-500.0,0.00013698,2]
[339947877,1728187851321,-500.0,0.00013698,2]
[339947878,1728187851330,-501.23192981,0.00013698,2]
[339947879,1728187851342,-500.1926377,0.00013698,2]
[339947880,1728187851355,-500.0,0.00013698,2]
[339947881,1728187851367,-500.0,0.00013698,2]
[339947882,1728187851379,-500.0,0.00013698,2]
[339947884,1728187851391,-500.0,0.00013698,2]
[339947885,1728187851403,-794.82,0.00013698,2]
[339947886,1728187851413,-530.03,0.00013698,2]
[339947887,1728187851424,-500.81986783,0.00013698,2]
[339947888,1728187851435,-198.06727378,0.00013698,2]
[339947890,1728187851446,-500.97281026,0.00013698,2]
[339947891,1728187851458,-500.61275524,0.00013698,2]
[339947892,1728187851469,-500.0,0.00013698,2]
[339947893,1728187851479,-500.63131975,0.00013698,2]
[339947894,1728187851492,-502.31477538,0.00013698,2]
[339947895,1728187851502,-500.0,0.00013698,2]
[339947896,1728187851513,-500.0,0.00013698,2]
[339947897,1728187851523,-212.59562914,0.00013698,2]
[339947898,1728187851535,-500.51488382,0.00013698,2]
[339947899,1728187851546,-538.75,0.00013698,2]
[339947900,1728187851558,-522.35,0.00013698,2]
[339947901,1728187851568,-1267.36,0.00013698,2]
[339947902,1728187851578,-552.74,0.00013698,2]
[339947903,1728187851588,-500.0,0.00013698,2]
[339947904,1728187851599,-500.68347422,0.00013698,2]
[339947905,1728187851609,-500.0,0.00013698,2]
[339947906,1728187851619,-500.0,0.00013698,2]
[339947907,1728187851630,-218.35110181,0.00013698,2]
[339947908,1728187851640,-725.14,0.00013698,2]
[339947909,1728187851651,-500.0,0.00013698,2]
[339947910,1728187851663,-500.65916581,0.00013698,2]
[339947911,1728187851672,-500.0,0.00013698,2]
[339947912,1728187851684,-563.27,0.00013698,2]
[339947913,1728187851698,-735.05,0.00013698,2]
[339947914,1728187851710,-782.0,0.00013698,2]
[339947915,1728187851721,-646.24,0.00013698,2]
[339947916,1728187851733,-500.0,0.00013698,2]
[339947917,1728187851744,-867.47,0.00013698,2]
[339947918,1728187851756,-504.37317498,0.00013698,2]
[339947919,1728187851766,-500.0,0.00013698,2]
[339947920,1728187851776,-500.35141236,0.00013698,2]
[339947921,1728187851787,-500.60537386,0.00013698,2]
[339947922,1728187851797,-500.0,0.00013698,2]
[339947923,1728187851808,-523.37,0.00013698,2]
[339947924,1728187851819,-500.54583483,0.00013698,2]
[339947925,1728187851831,-500.0,0.00013698,2]
[339947926,1728187851841,-500.0,0.00013698,2]
[339947927,1728187851996,-501.06644127,0.00013698,2]
[339947928,1728187852037,-500.14536678,0.00013698,2]
[339947929,1728187852049,-500.0,0.00013698,2]
[339947930,1728187852061,-505.4450138,0.00013698,2]
[339947931,1728187852073,-648.94,0.00013698,2]
[339947932,1728187852085,-500.59182349,0.00013698,2]
[339947933,1728187852097,-500.53950319,0.00013698,2]
[339947934,1728187852109,-500.0355526,0.00013698,2]
[339947935,1728187852119,-681.38,0.00013698,2]
[339947936,1728187852131,-501.09420345,0.00013698,2]
[339947937,1728187852142,-500.0,0.00013698,2]
[339947938,1728187852152,-501.25792101,0.00013698,2]
[339947939,1728187852161,-500.0,0.00013698,2]
[339947940,1728187852171,-500.0,0.00013698,2]
[339947941,1728187852180,-500.0,0.00013698,2]
[339947942,1728187852189,-500.0,0.00013698,2]
[339947943,1728187852198,-565.63,0.00013698,2]
[339947944,1728187852208,-500.0,0.00013698,2]
[339947945,1728187852217,-500.0,0.00013698,2]
[339947946,1728187852227,-500.0,0.00013698,2]
[339947947,1728187852236,-500.0,0.00013698,2]
[339947948,1728187852246,-292.15391228,0.00013698,2]
[339947949,1728187852255,-500.0,0.00013698,2]
[339947950,1728187852265,-500.0,0.00013698,2]
[339947951,1728187852274,-500.0,0.00013698,2]
[339947952,1728187852283,-500.10745112,0.00013698,2]
[339947953,1728187852293,-500.0,0.00013698,2]
[339947954,1728187852302,-500.0,0.00013698,2]
[339947955,1728187852311,-500.0,0.00013698,2]
[339947956,1728187852321,-1806.9,0.00013698,2]
[339947957,1728187852330,-500.0,0.00013698,2]
[339947958,1728187852339,-501.49970364,0.00013698,2]
[339947959,1728187852348,-500.0,0.00013698,2]
[339947960,1728187852363,-500.0,0.00013698,2]
[339947961,1728187852372,-500.0,0.00013698,2]
[339947962,1728187852381,-588.13772352,0.00013698,2]
[339947963,1728187852391,-500.0,0.00013698,2]
[339947964,1728187852403,-500.0,0.00013698,2]
[339947965,1728187852415,-500.0,0.00013698,2]
[339947966,1728187852426,-500.0,0.00013698,2]
[339947967,1728187852436,-501.34489225,0.00013698,2]
[339947968,1728187852448,-503.82172203,0.00013698,2]
[339947969,1728187852457,-500.0,0.00013698,2]
[339947970,1728187852466,-500.0,0.00013698,2]
[339947971,1728187852475,-500.0,0.00013698,2]
[339947972,1728187852486,-500.84742907,0.00013698,2]
[339947973,1728187852497,-501.11756909,0.00013698,2]
[339947974,1728187852508,-500.0,0.00013698,2]
[339947975,1728187852519,-500.6678657,0.00013698,2]
[339947976,1728187852529,-500.0,0.00013698,2]
[339947977,1728187852538,-1370.14,0.00013698,2]
[339947978,1728187852549,-500.40783505,0.00013698,2]
[339947979,1728187852559,-500.26213749,0.00013698,2]
[339947980,1728187852569,-500.0,0.00013698,2]
[339947981,1728187852578,-500.0,0.00013698,2]
[339947982,1728187852587,-500.82836061,0.00013698,2]
[339947983,1728187852598,-510.41,0.00013698,2]
[339947984,1728187852610,-500.0,0.00013698,2]
[339947985,1728187852620,-1285.01,0.00013698,2]
[339947986,1728187852631,-500.60639047,0.00013698,2]
[339947987,1728187852642,-500.0,0.00013698,2]
[339947988,1728187852653,-500.0,0.00013698,2]
[339947989,1728187852664,-500.0,0.00013698,2]
[339947990,1728187852677,-547.01,0.00013698,2]
[339947991,1728187852686,-501.82527156,0.00013698,2]
[339947992,1728187852696,-500.0,0.00013698,2]
[339947993,1728187852705,-500.0,0.00013698,2]
[339947994,1728187852715,-500.0,0.00013698,2]
[339947995,1728187852724,-663.74,0.00013698,2]
[339947996,1728187852733,-500.0,0.00013698,2]
[339947997,1728187852742,-500.0,0.00013698,2]
[339947998,1728187852751,-500.0,0.00013698,2]
[339947999,1728187852760,-861.26,0.00013698,2]
[339948000,1728187852769,-502.27238676,0.00013698,2]
[339948001,1728187852779,-501.08470387,0.00013698,2]
[339948002,1728187852788,-502.87875573,0.00013698,2]
[339948003,1728187852797,-500.0,0.00013698,2]
[339948004,1728187852806,-500.0,0.00013698,2]
[339948005,1728187852815,-500.0,0.00013698,2]
[339948006,1728187852824,-500.70914842,0.00013698,2]
[339948007,1728187852833,-500.42925112,0.00013698,2]
[339948008,1728187852843,-500.0,0.00013698,2]
[339948009,1728187852852,-818.08,0.00013698,2]
[339948010,1728187852861,-661.5,0.00013698,2]
[339948011,1728187852870,-500.0,0.00013698,2]
[339948012,1728187852879,-1982.46,0.00013698,2]
[339948013,1728187852888,-500.0,0.00013698,2]
[339948014,1728187852898,-500.0,0.00013698,2]
[339948015,1728187852907,-500.0,0.00013698,2]
[339948016,1728187852916,-510.90620148,0.00013698,2]
[339948017,1728187852926,-808.58,0.00013698,2]
[339948018,1728187852935,-500.22526609,0.00013698,2]
[339948019,1728187852945,-500.0,0.00013698,2]
[339948020,1728187852955,-500.0,0.00013698,2]
[339948021,1728187852965,-685.82,0.00013698,2]
[339948022,1728187852975,-500.0,0.00013698,2]
[339948023,1728187852984,-1157.74,0.00013698,2]
[339948024,1728187852993,-500.0,0.00013698,2]
[339948025,1728187853003,-166.33999758,0.00013698,2]
[339948026,1728187853012,-500.0,0.00013698,2]
[339948027,1728187853022,-899.69,0.00013698,2]
[339948028,1728187853032,-501.93236248,0.00013698,2]
[339948029,1728187853042,-1083.13,0.00013698,2]
[339948030,1728187853053,-527.56,0.00013698,2]
[339948031,1728187853063,-500.0,0.00013698,2]
[339948032,1728187853071,-500.0,0.00013698,2]
[339948033,1728187853082,-500.0,0.00013698,2]
[339948034,1728187853094,-500.0,0.00013698,2]
[339948035,1728187853104,-500.0,0.00013698,2]
[339948036,1728187853115,-500.0,0.00013698,2]
[339948037,1728187853126,-500.0,0.00013698,2]
[339948038,1728187853137,-407.62792778,0.00013698,2]
[339948039,1728187853148,-504.95855062,0.00013698,2]
[339948040,1728187853158,-500.0,0.00013698,2]
[339948041,1728187853169,-637.46,0.00013698,2]
[339948042,1728187853180,-500.0432511,0.00013698,2]
[339948043,1728187853193,-500.0,0.00013698,2]
[339948044,1728187853203,-500.0,0.00013698,2]
[339948045,1728187853215,-504.80501296,0.00013698,2]
[339948046,1728187853227,-693.79,0.00013698,2]
[339948047,1728187853236,-500.0,0.00013698,2]
[339948048,1728187853245,-718.64,0.00013698,2]
[339948049,1728187853255,-500.0,0.00013698,2]
[339948050,1728187853264,-500.0,0.00013698,2]
[339948051,1728187853275,-500.0,0.00013698,2]
[339948052,1728187853286,-640.29,0.00013698,2]
[339948053,1728187853298,-500.0,0.00013698,2]
[339948054,1728187853308,-500.0,0.00013698,2]
[339948055,1728187853317,-500.0,0.00013698,2]
[339948056,1728187853329,-500.0,0.00013698,2]
[339948057,1728187853339,-500.0,0.00013698,2]
[339948058,1728187853350,-500.0,0.00013698,2]
[339948059,1728187853366,-500.0,0.00013698,2]
[339948060,1728187853377,-501.25605328,0.00013698,2]
[339948061,1728187853387,-500.0,0.00013698,2]
[339948062,1728187853400,-620.35094472,0.00013698,2]
[339948063,1728187853410,-510.79,0.00013698,2]
[339948064,1728187853422,-502.06908527,0.00013698,2]
[339948065,1728187853433,-500.0,0.00013698,2]
[339948066,1728187853444,-500.0,0.00013698,2]
[339948067,1728187853457,-500.0,0.00013698,2]
[339948068,1728187853470,-500.0,0.00013698,2]
[339948069,1728187853480,-500.0,0.00013698,2]
[339948070,1728187853491,-500.0,0.00013698,2]
[339948071,1728187853502,-500.0,0.00013698,2]
[339948072,1728187853514,-500.0,0.00013698,2]
[339948073,1728187853526,-500.0,0.00013698,2]
[339948074,1728187853537,-500.0,0.00013698,2]
[339948075,1728187853548,-762.9,0.00013698,2]
[339948076,1728187853559,-500.41549349,0.00013698,2]
[339948077,1728187853570,-500.0,0.00013698,2]
[339948078,1728187853582,-500.0,0.00013698,2]
[339948079,1728187853592,-500.0,0.00013698,2]
[339948080,1728187853603,-500.0,0.00013698,2]
[339948081,1728187853613,-500.0,0.00013698,2]
[339948082,1728187853624,-500.0,0.00013698,2]
[339948083,1728187853635,-500.0,0.00013698,2]
[339948084,1728187853645,-25.78726393,0.00013698,2]
[339948176,1728189038452,-294.007149,0.00012,2]
[339948177,1728189038463,-248.3251513,0.00012334,2]
[339948178,1728189038473,-330.4626899,0.00012415,2]
[339948179,1728189038484,-163.092203,0.00012678,2]
[339948180,1728189038495,-163.092203,0.00012709,2]
[339948181,1728189038507,-163.092203,0.00012741,2]
[339948182,1728189038518,-300.0,0.00013299,2]
[339948183,1728189038530,-300.0,0.00013299,2]
[339948184,1728189038542,-413.0249282,0.000133,2]
[339948185,1728189038553,-392.6786156,0.000133,2]
[339948186,1728189038564,-454.8743606,0.000133,2]
[339948187,1728189038576,-307.2801001,0.000133,2]
[339948188,1728189038588,-780.7221394,0.000133,2]
[339948189,1728189038601,-467.89373259,0.00013423,2]
[339948190,1728189038617,-1000.0,0.00013588,2]
[339948191,1728189038627,-413.0249282,0.000136,2]
[339948192,1728189038636,-244.0,0.0001363,2]
[339948193,1728189038647,-549.9747122,0.00013678,2]
[339948194,1728189038656,-71345.4435718,0.00013678,2]
[339948195,1728189038666,-3358.40506368,0.00013678,2]
[339948196,1728189038677,-3212.33550079,0.00013688,2]
[339948202,1728189040391,-47176.89490592,0.00013688,2]
[339948213,1728189043453,-6170.0,0.00013688,2]
[339948271,1728190240515,-295.993541,0.00012,2]
[339948272,1728190240528,-830.3930182,0.000133,2]
[339948273,1728190240538,-1000.0,0.00013598,2]
[339948274,1728190240548,-5000.0,0.000136,2]
[339948275,1728190240558,-300.0,0.00013667,2]
[339948276,1728190240568,-300.0,0.00013672,2]
[339948277,1728190240577,-500.24724915,0.00013673,2]
[339948278,1728190240588,-500.58519921,0.00013673,2]
[339948279,1728190240599,-500.0,0.00013673,2]
[339948280,1728190240609,-161.44250847,0.00013673,2]
[339948281,1728190240618,-500.0,0.00013673,2]
[339948282,1728190240627,-500.0,0.00013673,2]
[339948283,1728190240637,-366.64980813,0.00013677,2]
[339948284,1728190240648,-34773.16165,0.00013678,2]
[339948285,1728190240661,-1903.09620272,0.00013678,2]
[339948286,1728190240671,-18501.58783834,0.00013678,2]
[339948287,1728190240682,-98198.77225751,0.00013678,2]
[339948288,1728190240693,-38845.60607739,0.00013678,2]
[339948289,1728190240711,-7801.66611341,0.00013678,2]
[339948343,1728190246716,-620.09726334,0.00013678,2]
[339948470,1728191439825,-166.24545131,0.00012,2]
[339948471,1728191439837,-281.193863,0.00012,2]
[339948472,1728191439848,-664.3144144,0.000133,2]
[339948473,1728191439859,-465.14468663,0.0001339,2]
[339948474,1728191440076,-300.0,0.00013499,2]
[339948475,1728191440092,-300.0,0.00013499,2]
[339948476,1728191440102,-14524.92137744,0.000135,2]
[339948477,1728191440111,-1000.0,0.00013578,2]
[339948478,1728191440123,-160.0,0.000136,3]
[339948479,1728191440132,-153.8653805,0.000136,2]
[339948480,1728191440142,-366.64980813,0.00013658,2]
[339948481,1728191440151,-19324.3374015,0.00013658,2]
[339948482,1728191440160,-856.39329122,0.00013658,2]
[339948483,1728191440170,-57973.0122044,0.00013659,2]
[339948484,1728191440179,-2569.17987366,0.00013659,2]
[339948485,1728191440188,-38648.6748029,0.0001366,2]
[339948486,1728191440198,-1712.78658244,0.0001366,2]
[339948487,1728191440207,-19324.3374015,0.0001366,2]
[339948488,1728191440217,-856.39329122,0.0001366,2]
[339948489,1728191440226,-18501.58783834,0.00013668,2]
[339948490,1728191440235,-38648.6748029,0.00013668,2]
[339948491,1728191440245,-1712.78658244,0.00013668,2]
[339948492,1728191440254,-98198.77225751,0.00013668,2]
[339948493,1728191440263,-19324.3374015,0.0001367,2]
[339948494,1728191440273,-856.39329122,0.0001367,2]
[339948495,1728191440282,-516.05353514,0.00013673,2]
[339948496,1728191440291,-500.0,0.00013673,2]
[339948497,1728191440301,-500.0,0.00013673,2]
[339948498,1728191440311,-151.0,0.00013678,2]
[339948499,1728191440321,-224.725868,0.00013678,2]
[339948500,1728191440332,-151.0,0.00013678,2]
[339948501,1728191440342,-6107.73699896,0.00013678,2]
[339948579,1728192631819,-284.411941,0.00012,2]
[339948580,1728192631830,-250.0000031,0.0001243,2]
[339948581,1728192631840,-171.73934104,0.00012999,2]
[339948607,1728192642994,-128.26065896,0.00012999,2]
[339948608,1728192643005,-300.0,0.00012999,2]
[339948609,1728192643014,-194.26972061,0.00013,2]
[339948613,1728192646015,-305.73027939,0.00013,2]
[339948614,1728192646028,-500.0,0.00013,2]
[339948615,1728192646040,-500.0,0.00013,2]
[339948616,1728192646049,-500.0,0.00013,2]
[339948617,1728192646060,-500.0,0.00013,2]
[339948618,1728192646070,-500.0,0.00013,2]
[339948619,1728192646080,-500.0,0.00013,2]
[339948620,1728192646091,-500.0,0.00013,2]
[339948621,1728192646101,-500.0,0.00013,2]
[339948622,1728192646117,-500.0,0.00013,2]
[339948623,1728192646129,-500.0,0.00013,2]
[339948624,1728192646139,-500.0,0.00013,2]
[339948625,1728192646152,-500.0,0.00013,2]
[339948626,1728192646161,-500.0,0.00013,2]
[339948627,1728192646173,-599.67,0.00013,2]
[339948628,1728192646184,-500.0,0.00013,2]
[339948629,1728192646196,-500.0,0.00013,2]
[339948630,1728192646207,-500.0,0.00013,2]
[339948631,1728192646220,-500.0,0.00013,2]
[339948632,1728192646231,-500.0,0.00013,2]
[339948633,1728192646242,-500.0,0.00013,2]
[339948634,1728192646253,-500.0,0.00013,2]
[339948635,1728192646265,-500.0,0.00013,2]
[339948636,1728192646277,-500.0,0.00013,2]
[339948637,1728192646286,-500.0,0.00013,2]
[339948638,1728192646298,-500.0,0.00013,2]
[339948639,1728192646307,-500.0,0.00013,2]
[339948640,1728192646318,-500.0,0.00013,2]
[339948641,1728192646330,-500.0,0.00013,2]
[339948642,1728192646341,-500.0,0.00013,2]
[339948643,1728192646351,-500.0,0.00013,2]
[339948644,1728192646363,-500.0,0.00013,2]
[339948645,1728192646374,-500.0,0.00013,2]
[339948646,1728192646386,-500.0,0.00013,2]
[339948647,1728192646396,-500.0,0.00013,2]
[339948648,1728192646414,-500.0,0.00013,2]
[339948649,1728192646423,-500.0,0.00013,2]
[339948650,1728192646432,-500.0,0.00013,2]
[339948651,1728192646442,-500.0,0.00013,2]
[339948652,1728192646451,-500.0,0.00013,2]
[339948653,1728192646461,-500.0,0.00013,2]
[339948654,1728192646470,-500.0,0.00013,2]
[339948655,1728192646479,-500.0,0.00013,2]
[339948656,1728192646488,-500.0,0.00013,2]
[339948657,1728192646498,-500.0,0.00013,2]
[339948658,1728192646508,-500.0,0.00013,2]
[339948659,1728192646520,-500.0,0.00013,2]
[339948660,1728192646532,-157.56,0.00013,2]
[339948661,1728192646544,-153.0,0.000133,2]
[339948662,1728192646556,-531.4515316,0.000133,2]
[339948663,1728192646566,-315.41905682,0.00013326,2]
[339948664,1728192646577,-153.0,0.000135,2]
[339948665,1728192646589,-153.0,0.000135,2]
[339948666,1728192646602,-306.0,0.000135,2]
[339948667,1728192646612,-3773.88475068,0.000135,2]
[339948668,1728192646623,-305.93571701,0.000135,2]
[339948669,1728192646634,-5000.0,0.000136,2]
[339948670,1728192646648,-150.0,0.00013642,2]
[339948671,1728192646660,-11418.0502227,0.0001367,2]
[339948672,1728192646671,-428.19664563,0.0001367,2]
[339948673,1728192646683,-501.33930147,0.00013673,2]
[339948674,1728192646694,-500.0,0.00013673,2]
[339948675,1728192646707,-11418.0502227,0.00013678,2]
[339948676,1728192646717,-428.19664563,0.00013678,2]
[339948677,1728192646727,-22836.1004454,0.00013678,2]
[339948678,1728192646737,-856.39329126,0.00013678,2]
[339948679,1728192646748,-1068.2451396,0.00013678,2]
[339948769,1728193838269,-270.191343,0.00012,2]
[339948770,1728193838280,-25286.56668897,0.000133,2]
[339948771,1728193838291,-25220.37367731,0.000133,2]
[339948772,1728193838304,-6004.77855883,0.000133,2]
[339948773,1728193838317,-1812.04808559,0.000133,2]
[339948776,1728193840130,-67784.79967827,0.000133,2]
[339948777,1728193840140,-500.0,0.000133,2]
[339948778,1728193840150,-465.00723434,0.00013357,2]
[339948779,1728193840160,-3302.14915681,0.00013558,2]
[339948780,1728193840170,-158.58218775,0.00013559,2]
[339948781,1728193840180,-1000.0,0.00013578,2]
[339948782,1728193840189,-158.58218775,0.0001358,2]
[339948783,1728193840198,-300.0,0.00013587,2]
[339948784,1728193840208,-300.0,0.00013587,2]
[339948785,1728193840218,-13677.76293413,0.00013588,2]
[339948786,1728193840227,-150.355149,0.000136,2]
[339948787,1728193840236,-392.41000094,0.00013657,2]
[339948788,1728193840248,-25608.479592,0.00013658,2]
[339948789,1728193840258,-1113.31127852,0.00013658,2]
[339948790,1728193840269,-25608.479592,0.00013658,2]
[339948791,1728193840280,-1113.31127852,0.00013658,2]
[339948792,1728193840291,-98198.77225751,0.0001366,2]
[339948793,1728193840302,-12804.239796,0.0001366,2]
[339948794,1728193840314,-556.65563926,0.0001366,2]
[339948795,1728193840323,-151.0,0.00013668,2]
[339948796,1728193840333,-151.0,0.00013668,2]
[339948797,1728193840343,-12804.239796,0.00013668,2]
[339948798,1728193840353,-556.65563926,0.00013668,2]
[339948799,1728193840363,-151.0,0.0001367,2]
[339948800,1728193840373,-224.725868,0.0001367,2]
[339948801,1728193840382,-151.0,0.0001367,2]
[339948802,1728193840391,-25608.479592,0.0001367,2]
[339948803,1728193840400,-1113.31127852,0.0001367,2]
[339948804,1728193840410,-151.0,0.0001367,2]
[339948805,1728193840419,-151.0,0.0001367,2]
[339948806,1728193840428,-510.47111005,0.00013673,2]
[339948807,1728193840437,-501.31114254,0.00013673,2]
[339948808,1728193840446,-500.7932319,0.00013673,2]
[339948809,1728193840455,-169.0,0.00013673,2]
[339948810,1728193840465,-500.0,0.00013673,2]
[339948811,1728193840474,-12095.02290438,0.00013677,2]
[339948812,1728193840483,-152.175292,0.00013678,2]
[339948813,1728193840492,-151.0,0.00013678,2]
[339948814,1728193840502,-151.0,0.00013678,2]
[339948815,1728193840511,-151.0,0.00013678,2]
[339948816,1728193840520,-151.0,0.00013678,2]
[339948817,1728193840529,-158.919768,0.00013678,2]
[339948818,1728193840538,-151.0,0.00013678,2]
[339948819,1728193840548,-178.133878,0.00013678,2]
[339948820,1728193840557,-12804.239796,0.00013678,2]
[339948821,1728193840566,-556.65563926,0.00013678,2]
[339948822,1728193840576,-5180.98883827,0.0001368,2]
[339948862,1728194986649,17099.67,0.00010209,2]
[339948898,1728195032277,-274.79346,0.00012,2]
[339948899,1728195032289,-261.24740264,0.0001235,2]
[339948908,1728195038330,-38.75259736,0.0001235,2]
[339948909,1728195038340,-300.0,0.0001235,2]
[339948910,1728195038350,-14096.3276627,0.00012351,2]
[339948911,1728195038360,-250.0,0.00012417,2]
[339948912,1728195038371,-1903.63665645,0.00013292,2]
[339948913,1728195038381,-1125.5835458,0.000133,2]
[339948914,1728195038390,-420.0,0.00013553,2]
[339948915,1728195038401,-2889.3805122,0.0001356,2]
[339948916,1728195038411,-420.0,0.00013585,2]
[339948917,1728195038423,-1433.2713246,0.00013598,2]
[339948918,1728195038434,-30426.7599528,0.0001366,2]
[339948919,1728195038445,-3799.2549588,0.0001366,2]
[339948920,1728195038457,-29327.14618743,0.00013668,2]
[339948921,1728195038470,-31526.37371807,0.00013668,2]
[339948922,1728195038483,-7598.5099176,0.00013668,2]
[339948923,1728195038494,-30426.7599528,0.0001367,2]
[339948924,1728195038504,-3799.2549588,0.0001367,2]
[339948925,1728195038515,-549.1192416,0.00013673,2]
[339948926,1728195038526,-161.44250847,0.00013673,2]
[339948927,1728195038537,-500.7932319,0.00013673,2]
[339948928,1728195038549,-501.11138994,0.00013673,2]
[339948929,1728195038562,-501.31114254,0.00013673,2]
[339948930,1728195038572,-500.0,0.00013673,2]
[339948931,1728195038586,-500.0,0.00013673,2]
[339948932,1728195038597,-60853.5199055,0.00013677,2]
[339948933,1728195038613,-7598.5099176,0.00013677,2]
[339948934,1728195038626,-151.0,0.00013677,2]
[339948935,1728195038638,-151.0,0.00013677,2]
[339948936,1728195038650,-151.0,0.00013677,2]
[339948937,1728195038660,-151.0,0.00013677,2]
[339948938,1728195038672,-151.0,0.00013677,2]
[339948939,1728195038683,-30426.7599528,0.00013678,2]
[339948940,1728195038695,-3799.2549588,0.00013678,2]
[339948941,1728195038706,-151.0,0.00013678,2]
[339948942,1728195038716,-151.0,0.00013678,2]
[339948943,1728195038726,-151.0,0.00013678,2]
[339948944,1728195038736,-151.0,0.00013678,2]
[339948945,1728195038750,-151.0,0.00013678,2]
[339948946,1728195038761,-151.0,0.00013678,2]
[339948947,1728195038772,-151.0,0.00013678,2]
[339948948,1728195038785,-224.725868,0.00013678,2]
[339948949,1728195038798,-151.0,0.00013678,2]
[339948950,1728195038810,-151.0,0.00013678,2]
[339948951,1728195038822,-151.0,0.00013678,2]
[339948952,1728195038831,-151.0,0.00013678,2]
[339948953,1728195038843,-151.0,0.00013678,2]
[339948954,1728195038855,-151.0,0.00013678,2]
[339948955,1728195038867,-151.0,0.00013678,2]